bitfinex/quotes_BTCUSD_20250726
["timestamp","ask_amount","ask_price","bid_price","bid_amount"]
[1753503672055,0.50316657,117620.0,117610.0,0.24839883]
[1753503672928,0.5031665,117620.0,117610.0,0.25690136]
[1753503673128,0.5031665,117620.0,117610.0,0.54102516]
[1753503673586,0.5031665,117620.0,117610.0,0.53252263]
[1753503673797,0.49466469,117620.0,117610.0,0.54102501]
[1753503673988,0.49466469,117620.0,117610.0,0.54102509]
[1753503674189,0.49466469,117620.0,117610.0,0.53252263]
[1753503674454,0.5031665,117620.0,117610.0,0.60448203]
[1753503674666,0.5031665,117620.0,117610.0,0.61298456]
[1753503675537,0.51166838,117620.0,117610.0,0.60448203]
[1753503675721,0.51166838,117620.0,117610.0,0.61298456]
[1753503675926,0.51166838,117620.0,117610.0,0.53252263]
[1753503676155,0.51166838,117620.0,117610.0,0.54102516]
[1753503676352,0.51166838,117620.0,117610.0,0.53252263]
[1753503676881,0.5031665,117620.0,117610.0,0.25690136]
[1753503677101,0.49466469,117620.0,117610.0,0.54102516]
[1753503677561,0.49466469,117620.0,117610.0,0.54952762]
[1753503678012,0.5031665,117620.0,117610.0,0.54102516]
[1753503678408,0.5031665,117620.0,117610.0,0.54952762]
[1753503678637,0.5031665,117620.0,117610.0,0.53252263]
[1753503678815,0.5031665,117620.0,117610.0,0.54102516]
[1753503679014,0.5031665,117620.0,117610.0,0.66160263]
[1753503679371,0.5031665,117620.0,117610.0,0.67010516]
[1753503680418,0.49466469,117620.0,117610.0,0.67010516]
[1753503680839,0.50316657,117620.0,117610.0,0.66160263]
[1753503681649,0.50316657,117620.0,117610.0,0.65310003]
[1753503682177,0.50316657,117620.0,117610.0,0.66160263]
[1753503682975,0.50316657,117620.0,117610.0,0.37747883]
[1753503683181,0.50316657,117620.0,117610.0,0.66160263]
[1753503683797,0.50316657,117620.0,117610.0,0.67010516]
[1753503684687,0.5031665,117620.0,117610.0,0.67010516]
[1753503686840,0.9835994,117620.0,117610.0,0.19688356]
[1753503687046,0.97509803,117620.0,117610.0,0.30110356]
[1753503687861,0.96659644,117620.0,117610.0,0.30110356]
[1753503688071,0.96659644,117620.0,117610.0,0.17210356]
[1753503688288,0.96659644,117620.0,117610.0,0.30110356]
[1753503689120,0.96659644,117620.0,117610.0,0.32552356]
[1753503694011,0.68247264,117620.0,117610.0,0.32552356]
[1753503694467,0.96659644,117620.0,117610.0,0.32552356]
[1753503694942,0.68247264,117620.0,117610.0,0.32552356]
[1753503695832,0.67397091,117620.0,117610.0,0.32552356]
[1753503697596,0.95809471,117620.0,117610.0,0.32552356]
[1753503698237,0.95809471,117620.0,117610.0,0.19652356]
[1753503699818,0.67397091,117620.0,117610.0,0.19652356]
[1753503700503,0.95809471,117620.0,117610.0,0.19652356]
[1753503704657,0.9495929,117620.0,117610.0,0.19652356]
[1753503705121,0.6654691,117620.0,117610.0,0.19652356]
[1753503705365,0.9495929,117620.0,117610.0,0.19652356]
[1753503706213,0.6654691,117620.0,117610.0,0.19652356]
[1753503706425,0.9495929,117620.0,117610.0,0.19652356]
[1753503707073,0.6654691,117620.0,117610.0,0.19652356]
[1753503714961,0.9495929,117620.0,117610.0,0.19652356]
[1753503716854,0.6654691,117620.0,117610.0,0.19652356]
[1753503720422,0.9495929,117620.0,117610.0,0.19652356]
[1753503724955,0.6654691,117620.0,117610.0,0.19652356]
[1753503725178,0.9495929,117620.0,117610.0,0.19652356]
[1753503725821,0.6654691,117620.0,117610.0,0.19652356]
[1753503726871,0.8204329,117620.0,117610.0,0.19652356]
[1753503727098,0.9493129,117620.0,117610.0,0.19652356]
[1753503727502,0.6651891,117620.0,117610.0,0.19652356]
[1753503731077,0.9493129,117620.0,117610.0,0.19652356]
[1753503735537,0.9493129,117620.0,117610.0,0.17005356]
[1753503735748,0.00850231,117610.0,117600.0,0.60007583]
[1753503735955,0.04239455,117610.0,117600.0,0.63129879]
[1753503736172,0.02751672,117610.0,117600.0,0.63623901]
[1753503736377,0.01901441,117610.0,117600.0,0.66004197]
[1753503736642,0.01700441,117610.0,117600.0,0.66004204]
[1753503736843,0.01700441,117610.0,117600.0,0.684045]
[1753503737053,0.01700441,117610.0,117600.0,0.68409349]
[1753503737483,0.01700441,117610.0,117600.0,0.68509349]
[1753503737693,0.01700441,117610.0,117600.0,0.68609349]
[1753503738180,0.01700441,117610.0,117600.0,0.67059349]
[1753503738389,0.01700441,117610.0,117600.0,0.68609349]
[1753503739237,0.01700441,117610.0,117600.0,0.67759009]
[1753503739875,0.00850217,117610.0,117600.0,0.68609298]
[1753503740081,0.00850217,117610.0,117600.0,0.67759009]
[1753503740723,0.00850217,117610.0,117600.0,0.68609298]
[1753503741140,0.00850217,117610.0,117600.0,0.67759009]
[1753503741480,0.00850217,117610.0,117600.0,0.39346629]
[1753503741698,0.00850217,117610.0,117600.0,0.74244786]
[1753503742345,0.01700441,117610.0,117600.0,0.73394497]
[1753503742587,0.01700441,117610.0,117600.0,0.74244786]
[1753503742788,0.80958748,117620.0,117610.0,0.17005356]
[1753503742991,0.81159748,117620.0,117610.0,0.19277356]
[1753503743829,0.52747325,117620.0,117610.0,0.19277356]
[1753503744042,0.82009893,117620.0,117610.0,0.19277356]
[1753503744674,0.53597513,117620.0,117610.0,0.19277356]
[1753503744941,0.53597513,117620.0,117610.0,0.20127623]
[1753503745175,0.53597513,117620.0,117610.0,0.19277356]
[1753503745861,0.70601423,117620.0,117610.0,0.19277356]
[1753503746284,0.99013803,117620.0,117610.0,0.19277356]
[1753503747131,0.97313478,117620.0,117610.0,0.19277356]
[1753503747341,0.97313478,117620.0,117610.0,0.17005356]
[1753503747792,0.97313478,117620.0,117610.0,0.19405356]
[1753503750917,0.84425478,117620.0,117610.0,0.19405356]
[1753503751204,0.97313478,117620.0,117610.0,0.19405356]
[1753503757172,0.97313478,117620.0,117610.0,0.19405356]
[1753503758271,0.68901098,117620.0,117610.0,0.19405356]
[1753503763012,0.52747354,117620.0,117610.0,0.19405356]
[1753503763637,0.69751264,117620.0,117610.0,0.19405356]
[1753503764472,0.98163644,117620.0,117610.0,0.19405356]
[1753503765799,0.55835855,117610.0,117600.0,4.849e-05]
[1753503766024,1.05789965,117610.0,117600.0,4.849e-05]
[1753503766272,1.08445965,117610.0,117600.0,4.849e-05]
[1753503768100,1.08645965,117610.0,117600.0,4.849e-05]
[1753503768318,1.17093695,117610.0,117600.0,4.849e-05]
[1753503774334,0.88681315,117610.0,117600.0,4.849e-05]
[1753503774547,1.17093695,117610.0,117600.0,4.849e-05]
[1753503778842,0.88681315,117610.0,117600.0,4.849e-05]
[1753503779083,1.08350965,117610.0,117600.0,4.849e-05]
[1753503780683,0.79938585,117610.0,117600.0,4.849e-05]
[1753503780899,1.08350965,117610.0,117600.0,4.849e-05]
[1753503781803,1.06760965,117610.0,117600.0,4.849e-05]
[1753503782072,1.15208695,117610.0,117600.0,0.02683849]
[1753503782317,1.11307695,117610.0,117600.0,0.02999849]
[1753503782520,1.15367695,117610.0,117600.0,0.02999849]
[1753503783437,1.15367695,117610.0,117600.0,0.02683849]
[1753503786988,1.15367695,117610.0,117600.0,0.02486849]
[1753503787214,1.15367695,117610.0,117600.0,4.849e-05]
[1753503788741,1.17175695,117610.0,117600.0,4.849e-05]
[1753503791028,1.16877695,117610.0,117600.0,4.849e-05]
[1753503797471,1.15367695,117610.0,117600.0,4.849e-05]
[1753503813152,0.86955315,117610.0,117600.0,4.849e-05]
[1753503813407,1.15367695,117610.0,117600.0,4.849e-05]
[1753503820359,0.83018042,117610.0,117600.0,0.00205849]
[1753503820564,0.8997595,117610.0,117600.0,0.02785849]
[1753503820995,1.0285995,117610.0,117600.0,0.02785849]
[1753503821214,1.0526195,117610.0,117600.0,0.02785849]
[1753503822562,1.0526195,117610.0,117600.0,0.19792651]
[1753503822563,0.7367211,117610.0,117600.0,0.19792651]
[1753503822788,0.57232214,117610.0,117600.0,0.22922651]
[1753503823012,0.76832732,117610.0,117600.0,0.51335031]
[1753503823672,0.76832732,117610.0,117600.0,0.22922651]
[1753503826412,0.63948732,117610.0,117600.0,0.22922651]
[1753503826638,0.50529343,117610.0,117600.0,0.51335031]
[1753503826860,0.52229856,117610.0,117600.0,0.52185371]
[1753503827577,0.52229856,117610.0,117600.0,0.51335031]
[1753503828412,0.68385002,117610.0,117600.0,0.51335031]
[1753503829035,0.68385002,117610.0,117600.0,0.22922651]
[1753503829569,1.21653119,117610.0,117600.0,4.849e-05]
[1753503829820,1.23263119,117610.0,117600.0,4.849e-05]
[1753503830797,1.24763119,117610.0,117600.0,4.849e-05]
[1753503838742,1.23263119,117610.0,117600.0,4.849e-05]
[1753503840374,1.24913119,117610.0,117600.0,4.849e-05]
[1753503842423,1.23263119,117610.0,117600.0,4.849e-05]
[1753503842828,1.24913119,117610.0,117600.0,4.849e-05]
[1753503845786,1.18150365,117610.0,117600.0,4.849e-05]
[1753503847116,1.16500365,117610.0,117600.0,4.849e-05]
[1753503847884,1.18150365,117610.0,117600.0,4.849e-05]
[1753503853127,1.16500365,117610.0,117600.0,4.849e-05]
[1753503855377,0.53602044,117600.0,117590.0,0.21151096]
[1753503855592,1.04192472,117600.0,117590.0,0.21356096]
[1753503859038,0.7993566,117600.0,117590.0,0.21356096]
[1753503859256,1.0834804,117600.0,117590.0,0.21356096]
[1753503859485,1.0834804,117600.0,117590.0,0.22966096]
[1753503862093,0.7993566,117600.0,117590.0,0.22966096]
[1753503863864,0.7993566,117600.0,117590.0,0.21356096]
[1753503864039,0.74872165,117600.0,117590.0,0.19766096]
[1753503864242,0.01700766,117590.0,117580.0,0.52029546]
[1753503864501,0.16281539,117590.0,117580.0,0.5223939]
[1753503864916,0.17131907,117590.0,117580.0,0.5223939]
[1753503865875,0.17131907,117590.0,117580.0,0.2382701]
[1753503866072,0.17131907,117590.0,117580.0,0.53089853]
[1753503866486,0.17131907,117590.0,117580.0,0.53189853]
[1753503867130,0.17131907,117590.0,117580.0,0.5233939]
[1753503867557,0.17131907,117590.0,117580.0,0.5148892]
[1753503867765,0.17131907,117590.0,117580.0,0.5233939]
[1753503868020,0.17128856,117590.0,117580.0,0.5233939]
[1753503868261,0.17128856,117590.0,117580.0,0.53189853]
[1753503868462,0.17128856,117590.0,117580.0,0.5243939]
[1753503868614,0.17128856,117590.0,117580.0,0.53289853]
[1753503868814,0.17128856,117590.0,117580.0,0.54140308]
[1753503869218,0.17128856,117590.0,117580.0,0.5243939]
[1753503869417,0.04248856,117590.0,117580.0,0.5243939]
[1753503869625,0.17128856,117590.0,117580.0,0.2402701]
[1753503869997,0.17979261,117590.0,117580.0,0.5243939]
[1753503870215,0.17128856,117590.0,117580.0,0.5243939]
[1753503870437,0.17979261,117590.0,117580.0,0.5243939]
[1753503870908,0.17979253,117590.0,117580.0,0.5243939]
[1753503871124,0.17979253,117590.0,117580.0,0.52439397]
[1753503871338,0.17979253,117590.0,117580.0,0.53289867]
[1753503874111,0.17979253,117590.0,117580.0,0.52439397]
[1753503874357,0.17979253,117590.0,117580.0,0.53289867]
[1753503874535,0.17979253,117590.0,117580.0,0.52439397]
[1753503874758,0.17979253,117590.0,117580.0,0.53289867]
[1753503874949,0.17979253,117590.0,117580.0,0.52439397]
[1753503875199,0.17979253,117590.0,117580.0,0.53289867]
[1753503875831,0.17979253,117590.0,117580.0,0.5414033]
[1753503876130,0.17979253,117590.0,117580.0,0.53289867]
[1753503876339,0.17979253,117590.0,117580.0,0.5264033]
[1753503876766,0.17128856,117590.0,117580.0,0.5264033]
[1753503877457,0.17128856,117590.0,117580.0,0.53490785]
[1753503877913,0.17128856,117590.0,117580.0,0.5264033]
[1753503878656,0.16278466,117590.0,117580.0,0.5264033]
[1753503878901,0.17128863,117590.0,117580.0,0.5264033]
[1753503879897,0.17128856,117590.0,117580.0,0.5264033]
[1753503880628,0.17128856,117590.0,117580.0,0.53490785]
[1753503880830,0.17128856,117590.0,117580.0,0.5264033]
[1753503881031,0.17128856,117590.0,117580.0,0.53490785]
[1753503881228,0.17128856,117590.0,117580.0,0.51789867]
[1753503881438,0.17979253,117590.0,117580.0,0.51789867]
[1753503882267,0.17979253,117590.0,117580.0,0.50939397]
[1753503882462,0.17979253,117590.0,117580.0,0.51789867]
[1753503882723,0.64495459,117590.0,117580.0,0.2004654]
[1753503882923,0.66784459,117590.0,117580.0,0.1974054]
[1753503883295,0.38372079,117590.0,117580.0,0.1974054]
[1753503883550,0.66784459,117590.0,117580.0,0.1974054]
[1753503884324,0.37521696,117590.0,117580.0,0.1974054]
[1753503884672,0.36671306,117590.0,117580.0,0.1974054]
[1753503886208,0.34382306,117590.0,117580.0,0.1974054]
[1753503886437,0.34382306,117590.0,117580.0,0.2004254]
[1753503887118,0.34382306,117590.0,117580.0,0.20893024]
[1753503887335,0.3353496,117590.0,117580.0,0.2004254]
[1753503888189,0.3740396,117590.0,117580.0,0.1721454]
[1753503888648,0.3582396,117590.0,117580.0,0.20342024]
[1753503888859,0.3582396,117590.0,117580.0,0.1970654]
[1753503889078,0.3353496,117590.0,117580.0,0.2000854]
[1753503890255,0.16526711,117590.0,117580.0,0.2000854]
[1753503892518,0.17365028,117590.0,117580.0,0.2000854]
[1753503893391,0.45110007,117590.0,117580.0,0.1970654]
[1753503894495,0.42821007,117590.0,117580.0,0.20859024]
[1753503894707,0.42821007,117590.0,117580.0,0.2000854]
[1753503899350,0.23906949,117590.0,117580.0,0.52461404]
[1753503899571,0.44522737,117590.0,117580.0,0.2153854]
[1753503899783,0.46863737,117590.0,117580.0,0.1970654]
[1753503900207,0.44522737,117590.0,117580.0,0.1970654]
[1753503900414,0.44522737,117590.0,117580.0,0.2001254]
[1753503901762,0.43672383,117590.0,117580.0,0.2001254]
[1753503902211,1.23894474,117590.0,117580.0,0.00204845]
[1753503902426,1.12608474,117590.0,117580.0,0.00204845]
[1753503902685,1.25484474,117590.0,117580.0,0.00204845]
[1753503904255,1.25484474,117590.0,117580.0,0.00104845]
[1753503905371,1.25484474,117590.0,117580.0,4.845e-05]
[1753503912311,1.25684474,117590.0,117580.0,4.845e-05]
[1753503912947,0.20457121,117570.0,117560.0,0.21354982]
[1753503913177,0.70193231,117570.0,117560.0,0.21565982]
[1753503914055,0.70193231,117570.0,117560.0,0.23215982]
[1753503914265,0.25620222,117570.0,117560.0,0.24166604]
[1753503914476,0.26470771,117570.0,117560.0,0.23315982]
[1753503915318,0.26470771,117570.0,117560.0,0.23415982]
[1753503916598,0.26470771,117570.0,117560.0,0.24266611]
[1753503916818,0.26470771,117570.0,117560.0,0.23415982]
[1753503917776,0.26470771,117570.0,117560.0,0.24266611]
[1753503919160,0.26470771,117570.0,117560.0,0.25117233]
[1753503919383,0.26470771,117570.0,117560.0,0.24266611]
[1753503919610,0.26470771,117570.0,117560.0,0.25117233]
[1753503919834,0.26470771,117570.0,117560.0,0.24266611]
[1753503920649,0.26470771,117570.0,117560.0,0.23415982]
[1753503921773,0.26470771,117570.0,117560.0,0.24266611]
[1753503923043,0.26470771,117570.0,117560.0,0.25117233]
[1753503923257,0.25620222,117570.0,117560.0,0.25967847]
[1753503923492,0.54883159,117570.0,117560.0,0.25117233]
[1753503923923,0.26470771,117570.0,117560.0,0.25117233]
[1753503925258,0.26470771,117570.0,117560.0,0.24266611]
[1753503926321,0.27321328,117570.0,117560.0,0.24266611]
[1753503926956,0.27321328,117570.0,117560.0,0.25117233]
[1753503927369,0.26470771,117570.0,117560.0,0.25117233]
[1753503927586,0.26470771,117570.0,117560.0,0.24266611]
[1753503927794,0.26470771,117570.0,117560.0,0.25117233]
[1753503928225,0.25620222,117570.0,117560.0,0.25967847]
[1753503929106,0.25620222,117570.0,117560.0,0.26818454]
[1753503929319,0.25620222,117570.0,117560.0,0.25117233]
[1753503929530,0.26470771,117570.0,117560.0,0.25117233]
[1753503929760,0.26470771,117570.0,117560.0,0.23467233]
[1753503929988,0.26470771,117570.0,117560.0,0.21765982]
[1753503930349,0.26470771,117570.0,117560.0,0.23467233]
[1753503930562,0.26470771,117570.0,117560.0,0.22516611]
[1753503930771,0.26470771,117570.0,117560.0,0.22416611]
[1753503931757,0.26470771,117570.0,117560.0,0.23267233]
[1753503932180,0.27321328,117570.0,117560.0,0.22416611]
[1753503932778,0.26470771,117570.0,117560.0,0.23267233]
[1753503933201,0.27321328,117570.0,117560.0,0.23267233]
[1753503933406,0.26470771,117570.0,117560.0,0.23267233]
[1753503933793,0.26470771,117570.0,117560.0,0.24117847]
[1753503934256,0.26470771,117570.0,117560.0,0.23267233]
[1753503934876,0.26470771,117570.0,117560.0,0.24117847]
[1753503935087,0.26470771,117570.0,117560.0,0.23267233]
[1753503935738,0.26470771,117570.0,117560.0,0.22416611]
[1753503936813,0.27321328,117570.0,117560.0,0.20876611]
[1753503937511,0.27321328,117570.0,117560.0,0.21727233]
[1753503937736,0.27321328,117570.0,117560.0,0.20876611]
[1753503938399,0.55733708,117570.0,117560.0,0.20876611]
[1753503939889,0.55733708,117570.0,117560.0,0.21727233]
[1753503940328,0.55733708,117570.0,117560.0,0.20876611]
[1753503940776,0.55733708,117570.0,117560.0,0.21727233]
[1753503940998,0.54883151,117570.0,117560.0,0.21727233]
[1753503941672,0.54032602,117570.0,117560.0,0.22577847]
[1753503942104,0.54032602,117570.0,117560.0,0.21727233]
[1753503943188,0.25620222,117570.0,117560.0,0.22577847]
[1753503944548,0.30177561,117590.0,117580.0,0.17009695]
[1753503944772,0.62933042,117590.0,117580.0,0.49901007]
[1753503944988,0.52608148,117590.0,117580.0,0.5392147]
[1753503945206,0.65484141,117590.0,117580.0,0.5392147]
[1753503945425,0.67225043,117590.0,117580.0,0.5392147]
[1753503945642,0.67225043,117590.0,117580.0,0.53071015]
[1753503945856,0.67425043,117590.0,117580.0,0.2550909]
[1753503946294,0.67425043,117590.0,117580.0,0.24658635]
[1753503946743,0.45254922,117590.0,117580.0,0.5477189]
[1753503946961,0.56638244,117590.0,117580.0,0.5477189]
[1753503947651,0.34408241,117590.0,117580.0,0.5477189]
[1753503947894,0.47280241,117590.0,117580.0,0.5477189]
[1753503948351,0.47280241,117590.0,117580.0,0.6764389]
[1753503950712,0.48130595,117590.0,117580.0,0.6764389]
[1753503951722,0.48980964,117590.0,117580.0,0.66793456]
[1753503951916,0.48980956,117590.0,117580.0,0.6764389]
[1753503952535,0.36108956,117590.0,117580.0,0.6764389]
[1753503952740,0.48980956,117590.0,117580.0,0.6764389]
[1753503953136,0.35258588,117590.0,117580.0,0.6764389]
[1753503953565,0.48130588,117590.0,117580.0,0.6764389]
[1753503953968,0.35258588,117590.0,117580.0,0.5477189]
[1753503954222,0.48130588,117590.0,117580.0,0.5477189]
[1753503955172,0.48980949,117590.0,117580.0,0.5477189]
[1753503955602,0.48980949,117590.0,117580.0,0.53921456]
[1753503955950,0.48980949,117590.0,117580.0,0.5477189]
[1753503956174,0.48980949,117590.0,117580.0,0.53921456]
[1753503956403,0.48980949,117590.0,117580.0,0.5477189]
[1753503957865,0.48980942,117590.0,117580.0,0.5477189]
[1753503958527,0.50681694,117590.0,117580.0,0.5392147]
[1753503958723,0.50681694,117590.0,117580.0,0.54771918]
[1753503959153,0.49831311,117590.0,117580.0,0.54771918]
[1753503959367,0.49831311,117590.0,117580.0,0.55622359]
[1753503959557,0.49831311,117590.0,117580.0,0.54771882]
[1753503960209,0.49831311,117590.0,117580.0,0.53921441]
[1753503960619,0.50681694,117590.0,117580.0,0.53070993]
[1753503961002,0.49831311,117590.0,117580.0,0.53070993]
[1753503961259,0.50681694,117590.0,117580.0,0.53921441]
[1753503961528,0.50681694,117590.0,117580.0,0.53070993]
[1753503961761,0.51532084,117590.0,117580.0,0.53071022]
[1753503961970,0.50681694,117590.0,117580.0,0.53071022]
[1753503962386,0.50681694,117590.0,117580.0,0.53921477]
[1753503963006,0.50681694,117590.0,117580.0,0.54771925]
[1753503963431,0.49831311,117590.0,117580.0,0.54771925]
[1753503963677,0.50681687,117590.0,117580.0,0.53921477]
[1753503964096,0.51532077,117590.0,117580.0,0.53921477]
[1753503964298,0.50681687,117590.0,117580.0,0.53921477]
[1753503965338,0.51532077,117590.0,117580.0,0.53921477]
[1753503966604,0.51532077,117590.0,117580.0,0.53071022]
[1753503967450,0.50681687,117590.0,117580.0,0.53921477]
[1753503967652,0.50681687,117590.0,117580.0,0.54771925]
[1753503967823,0.50681687,117590.0,117580.0,0.53921477]
[1753503968159,0.50681687,117590.0,117580.0,0.54771925]
[1753503968332,0.50681687,117590.0,117580.0,0.53241925]
[1753503968947,0.50681687,117590.0,117580.0,0.52391477]
[1753503969161,0.48130588,117590.0,117580.0,0.54092359]
[1753503969623,0.48130588,117590.0,117580.0,0.55742359]
[1753503969851,0.48980949,117590.0,117580.0,0.55742359]
[1753503970275,0.48980949,117590.0,117580.0,0.54891925]
[1753503970490,0.49831325,117590.0,117580.0,0.55742366]
[1753503970707,0.49831325,117590.0,117580.0,0.54891925]
[1753503971587,0.49831325,117590.0,117580.0,0.55742366]
[1753503972224,0.48980949,117590.0,117580.0,0.54092366]
[1753503972454,0.48980949,117590.0,117580.0,0.54851882]
[1753503972662,0.48980949,117590.0,117580.0,0.55702316]
[1753503972868,0.48980949,117590.0,117580.0,0.54851882]
[1753503973153,0.48980949,117590.0,117580.0,0.55702316]
[1753503973605,0.48130595,117590.0,117580.0,0.63761971]
[1753503973812,0.48130595,117590.0,117580.0,0.55702316]
[1753503975001,0.47930595,117590.0,117580.0,0.55702316]
[1753503975211,0.48580964,117590.0,117580.0,0.55702316]
[1753503975415,0.4953134,117590.0,117580.0,0.52391441]
[1753503975615,0.4963134,117590.0,117580.0,0.53241882]
[1753503976286,0.48780964,117590.0,117580.0,0.53241882]
[1753503976465,0.47930595,117590.0,117580.0,0.54092316]
[1753503977088,0.47930595,117590.0,117580.0,0.25679936]
[1753503977308,0.48780964,117590.0,117580.0,0.53241882]
[1753503977512,0.47930595,117590.0,117580.0,0.54092316]
[1753503977722,0.48780971,117590.0,117580.0,0.53241882]
[1753503977887,0.48780971,117590.0,117580.0,0.61301537]
[1753503978102,0.48780971,117590.0,117580.0,0.53241882]
[1753503978558,0.47930595,117590.0,117580.0,0.53241882]
[1753503978853,0.48780964,117590.0,117580.0,0.53241882]
[1753503979371,0.48780964,117590.0,117580.0,0.54092316]
[1753503979576,0.47930595,117590.0,117580.0,0.54092316]
[1753503979989,0.48780956,117590.0,117580.0,0.54092316]
[1753503980345,0.49631332,117590.0,117580.0,0.52391441]
[1753503980554,0.49631332,117590.0,117580.0,0.53241882]
[1753503980757,0.49631332,117590.0,117580.0,0.52391441]
[1753503981829,0.49631325,117590.0,117580.0,0.53241882]
[1753503982265,0.49631325,117590.0,117580.0,0.54092316]
[1753503982488,0.48780956,117590.0,117580.0,0.53241882]
[1753503982696,0.49631332,117590.0,117580.0,0.53241882]
[1753503983952,0.48780956,117590.0,117580.0,0.52391441]
[1753503984156,0.48780956,117590.0,117580.0,0.53241875]
[1753503984344,0.49631332,117590.0,117580.0,0.53241882]
[1753503984545,0.49631332,117590.0,117580.0,0.23979061]
[1753503984780,0.49631332,117590.0,117580.0,0.52391441]
[1753503985275,0.50481715,117590.0,117580.0,0.51540993]
[1753503985554,0.50481715,117590.0,117580.0,0.51541022]
[1753503985767,0.50481715,117590.0,117580.0,0.50751477]
[1753503987040,0.50481715,117590.0,117580.0,0.49901022]
[1753503987261,0.51531112,117590.0,117580.0,0.49605029]
[1753503987452,0.53178715,117590.0,117580.0,0.50455492]
[1753503987687,0.53178715,117590.0,117580.0,0.51305947]
[1753503988144,0.54029105,117590.0,117580.0,0.50455492]
[1753503988563,0.54029105,117590.0,117580.0,0.51305947]
[1753503988848,0.54029105,117590.0,117580.0,0.50455492]
[1753503989465,0.54029105,117590.0,117580.0,0.51305947]
[1753503989681,0.54029105,117590.0,117580.0,0.50455492]
[1753503990015,0.54029105,117590.0,117580.0,0.51305947]
[1753503990228,0.54029105,117590.0,117580.0,0.50455492]
[1753503990528,0.54029105,117590.0,117580.0,0.49605029]
[1753503990731,0.53178751,117590.0,117580.0,0.49605036]
[1753503990938,0.53178751,117590.0,117580.0,0.50455499]
[1753503991160,0.53178751,117590.0,117580.0,0.50455506]
[1753503991393,0.53178751,117590.0,117580.0,0.51305969]
[1753503993953,0.53178751,117590.0,117580.0,0.50455506]
[1753503994167,0.53178751,117590.0,117580.0,0.51305969]
[1753503994377,0.53178751,117590.0,117580.0,0.50455506]
[1753503994589,0.53178751,117590.0,117580.0,0.51305969]
[1753503995221,0.53178751,117590.0,117580.0,0.22893589]
[1753503995398,0.53178751,117590.0,117580.0,0.51615969]
[1753503995812,0.50680751,117590.0,117580.0,0.51615969]
[1753503996241,0.50680751,117590.0,117580.0,0.23203589]
[1753503997005,0.49830361,117590.0,117580.0,0.24054044]
[1753503997234,0.50680758,117590.0,117580.0,0.23203589]
[1753503998187,0.50680758,117590.0,117580.0,0.51615969]
[1753503998363,0.50680751,117590.0,117580.0,0.52466424]
[1753503998790,0.50680751,117590.0,117580.0,0.51615969]
[1753503999426,0.50680751,117590.0,117580.0,0.50765506]
[1753504000069,0.50680751,117590.0,117580.0,0.51615969]
[1753504000291,0.50680751,117590.0,117580.0,0.52466424]
[1753504000509,0.50680751,117590.0,117580.0,0.50765506]
[1753504000735,0.50680751,117590.0,117580.0,0.51615969]
[1753504002688,0.50680751,117590.0,117580.0,0.22353126]
[1753504002897,0.50680751,117590.0,117580.0,0.51615969]
[1753504003594,0.50680751,117590.0,117580.0,0.50765506]
[1753504003997,0.50680751,117590.0,117580.0,0.51615969]
[1753504004215,0.50680751,117590.0,117580.0,0.50765506]
[1753504004417,0.50680751,117590.0,117580.0,0.51615969]
[1753504004742,0.50680751,117590.0,117580.0,0.52466424]
[1753504005161,0.50680751,117590.0,117580.0,0.51615969]
[1753504005773,0.50680751,117590.0,117580.0,0.59675624]
[1753504005973,0.50680751,117590.0,117580.0,0.51615969]
[1753504006584,0.50680751,117590.0,117580.0,0.50765506]
[1753504006910,0.50680751,117590.0,117580.0,0.51615969]
[1753504008257,0.50680751,117590.0,117580.0,0.52466424]
[1753504008958,0.48979978,117590.0,117580.0,0.5161594]
[1753504009212,0.49830368,117590.0,117580.0,0.5161594]
[1753504009445,0.49830368,117590.0,117580.0,0.50765485]
[1753504009961,0.49830368,117590.0,117580.0,0.5161594]
[1753504010445,0.49830361,117590.0,117580.0,0.5161594]
[1753504011192,0.48780978,117590.0,117580.0,0.55626381]
[1753504011436,0.48780978,117590.0,117580.0,0.55626388]
[1753504011657,0.48780978,117590.0,117580.0,0.25694008]
[1753504011847,0.48780978,117590.0,117580.0,0.52466388]
[1753504012264,0.48780971,117590.0,117580.0,0.51615911]
[1753504012691,0.49631354,117590.0,117580.0,0.51615911]
[1753504013451,0.49631354,117590.0,117580.0,0.23203531]
[1753504013644,0.49631354,117590.0,117580.0,0.50765463]
[1753504013851,0.49631354,117590.0,117580.0,0.56389625]
[1753504014615,0.49623354,117590.0,117580.0,0.56389625]
[1753504016925,0.49623354,117590.0,117580.0,0.57240073]
[1753504017656,0.49623354,117590.0,117580.0,0.56389625]
[1753504017865,0.49623354,117590.0,117580.0,0.57240073]
[1753504018073,0.48772971,117590.0,117580.0,0.57240073]
[1753504018589,0.36759354,117590.0,117580.0,0.57240073]
[1753504018811,0.49623354,117590.0,117580.0,0.57240073]
[1753504019023,0.48772971,117590.0,117580.0,0.58090514]
[1753504019260,0.48772971,117590.0,117580.0,0.57240044]
[1753504019478,0.48772971,117590.0,117580.0,0.58090478]
[1753504019479,0.47922595,117590.0,117580.0,0.58090478]
[1753504020110,0.47922595,117590.0,117580.0,0.59730478]
[1753504020326,0.34208241,117590.0,117580.0,0.59730478]
[1753504020541,0.34208241,117590.0,117580.0,0.74214478]
[1753504021182,0.35058588,117590.0,117580.0,0.74214478]
[1753504021396,0.34208241,117590.0,117580.0,0.74214478]
[1753504022794,0.00208241,117590.0,117580.0,0.74214478]
[1753504023563,0.00108241,117590.0,117580.0,0.74214478]
[1753504023789,8.241e-05,117590.0,117580.0,0.74214478]
[1753504034598,8.241e-05,117590.0,117580.0,0.45802098]
[1753504034834,8.241e-05,117590.0,117580.0,0.74214478]
[1753504046475,8.241e-05,117590.0,117580.0,0.72594478]
[1753504046711,8.241e-05,117590.0,117580.0,0.74244478]
[1753504056722,8.241e-05,117590.0,117580.0,0.72594478]
[1753504066215,8.241e-05,117590.0,117580.0,0.74194478]
[1753504066893,8.241e-05,117590.0,117580.0,0.82642208]
[1753504074336,8.241e-05,117590.0,117580.0,0.52629828]
[1753504074536,8.241e-05,117590.0,117580.0,0.81042208]
[1753504076493,8.241e-05,117590.0,117580.0,0.79402208]
[1753504078651,8.241e-05,117590.0,117580.0,0.50989828]
[1753504078864,8.241e-05,117590.0,117580.0,0.79402208]
[1753504079632,0.01508241,117590.0,117580.0,0.79402208]
[1753504079837,8.241e-05,117590.0,117580.0,0.79402208]
[1753504093683,8.241e-05,117590.0,117580.0,0.66538208]
[1753504093849,0.00858588,117590.0,117580.0,0.79398208]
[1753504094052,8.241e-05,117590.0,117580.0,0.79398208]
[1753504094762,0.00858588,117590.0,117580.0,0.79398208]
[1753504094971,8.241e-05,117590.0,117580.0,0.79398208]
[1753504096043,0.00865623,117590.0,117580.0,0.79398208]
[1753504096796,0.40867375,117590.0,117580.0,0.40527245]
[1753504097035,0.41717736,117590.0,117580.0,0.413777]
[1753504097275,0.42568105,117590.0,117580.0,0.41377707]
[1753504097535,0.14155725,117590.0,117580.0,0.42228141]
[1753504097768,0.13305356,117590.0,117580.0,0.42228141]
[1753504099593,0.14141197,117590.0,117580.0,0.42228141]
[1753504100385,0.42857577,117590.0,117580.0,0.17860179]
[1753504100593,0.4455835,117590.0,117580.0,0.30720172]
[1753504100805,0.4455835,117590.0,117580.0,0.30720179]
[1753504101014,0.1614597,117590.0,117580.0,0.31570649]
[1753504101841,0.1614597,117590.0,117580.0,0.32421112]